[Event "34th MPL National U14-ch 2022"]
[Site "Ahmedabad"]
[Date "2022.05.12"]
[Round "7.9"]
[White "Divesh G"]
[Black "Abhash Roimya Saikia"]
[Result "0-1"]
[ECO "A03"]
[WhiteElo "1303"]
[BlackElo "1794"]
[Annotator "NA RC COMBH"]
[PlyCount "148"]
[EventDate "2022.05.09"]
[EventType "swiss"]
[EventCountry "IND"]
[SourceTitle "playchess.com"]
[Source "ChessBase"]
[SourceQuality "1"]
[TimeControl "5400+30"]

1. f4 {[%emt 0:00:10]} d5 {[%emt 0:00:37]} 2. Nf3 {[%emt 0:00:11]} Nf6 {[%emt 0:00:28]} 3. g3 {[%emt 0:00:03]} c5 {[%emt 0:01:59]} 4. Bg2 {[%emt 0:00:07]} h5 {[%emt 0:01:48]} 5. c3 {[%emt 0:01:07]} Nc6 {[%emt 0:01:01]} 6. d3 {[%emt 0:01:38]} Bg4 {[%emt 0:07:14]} 7. Qb3 {[%emt 0:04:04]} Bxf3 {[%emt 0:01:38]} 8. Bxf3 {[%emt 0:00:19]} Qd7 {[%emt 0:00:19]} 9. e4 {[%emt 0:01:50]} e6 {[%emt 0:14:21]} 10. e5 {[%emt 0:01:31]} Ng8 {[%emt 0:00:14]} 11. Qd1 {[%emt 0:03:13]} h4 {[%emt 0:01:35]} 12. g4 {[%emt 0:00:15]} g5 {[%emt 0:00:14]} 13. Qe2 {[%emt 0:01:25]} gxf4 {[%emt 0:00:34]} 14. Bxf4 {[%emt 0:00:31]} Nge7 {[%emt 0:02:06]} 15. Be3 {[%emt 0:07:07]} Nxe5 {[%emt 0:19:38]} 16. Bxc5 {[%emt 0:00:34]} N7g6 {[%emt 0:02:33]} 17. Be3 {[%emt 0:05:44]} Qb5 {[%emt 0:05:04]} 18. O-O {[%emt 0:06:31]} Qxd3 {[%emt 0:01:30]} 19. Qxd3 {[%emt 0:00:49]} Nxd3 {[%emt 0:00:07]} 20. Be2 {[%emt 0:00:12]} Bc5 {[%emt 0:01:51]} 21. Bxd3 {[%emt 0:00:22]} Bxe3+ 22. Kh1 {[%emt 0:00:38]} Rg8 {[%emt 0:02:26]} 23. Na3 {[%emt 0:01:54]} Ke7 {[%emt 0:02:24]} 24. Rae1 {[%emt 0:01:47]} Bc5 {[%emt 0:00:26]} 25. Nb5 {[%emt 0:03:54]} a6 {[%emt 0:02:34]} 26. Nc7 {[%emt 0:10:08]} Rad8 {[%emt 0:01:12]} 27. c4 {[%emt 0:06:19]} dxc4 {[%emt 0:06:12]} 28. Bxc4 {[%emt 0:00:36]} Nf8 {[%emt 0:15:32]} 29. Nd5+ {[%emt 0:08:53]} Kd6 {[%emt 0:00:13]} 30. Rd1 {[%emt 0:01:45]} Rxg4 {[%emt 0:02:19]} 31. Ne3+ {[%emt 0:15:40]} Rd4 {[%emt 0:00:07]} 32. Rxf7 {[%emt 0:00:34]} Rxd1+ {[%emt 0:00:58]} 33. Nxd1 {[%emt 0:00:02]} b5 {[%emt 0:01:09]} 34. Be2 {[%emt 0:00:35]} Ng6 {[%emt 0:01:03]} 35. Nc3 {[%emt 0:00:52]} Bd4 {[%emt 0:02:00]} 36. Rf3 {[%emt 0:08:28]} Ke7 {[%emt 0:01:56]} 37. Nd1 {[%emt 0:02:21]} Rd6 {[%emt 0:00:49]} 38. Kg2 {[%emt 0:00:51]} e5 {[%emt 0:00:08]} 39. Kf1 {[%emt 0:01:56]} Nf4 {[%emt 0:00:18]} 40. b3 {[%emt 0:00:34]} Rg6 {[%emt 0:00:36]} 41. Ne3 {[%emt 0:01:25]} Ke6 {[%emt 0:01:54]} 42. a4 {[%emt 0:00:37]} Nd5 {[%emt 0:00:49]} 43. Ng2 {[%emt 0:01:47]} e4 {[%emt 0:00:51]} 44. Rh3 {[%emt 0:01:08]} Rf6+ {[%emt 0:01:02]} 45. Ke1 {[%emt 0:00:14]} bxa4 {[%emt 0:00:25]} 46. bxa4 {[%emt 0:00:13]} a5 {[%emt 0:00:31]} 47. Bc4 {[%emt 0:01:44]} Kd6 {[%emt 0:00:27]} 48. Bxd5 {[%emt 0:00:26]} Kxd5 {[%emt 0:00:02]} 49. Nxh4 Rh6 {[%emt 0:01:03]} 50. Ng2 {[%emt 0:00:43]} Rxh3 {[%emt 0:00:16]} 51. Nf4+ {[%emt 0:00:02]} Kc4 {[%emt 0:00:41]} 52. Nxh3 {[%emt 0:00:01]} Kb3 {[%emt 0:00:42]} 53. Ng5 {[%emt 0:00:56]} e3 {[%emt 0:00:11]} 54. Ne6 {[%emt 0:00:30]} Bf6 {[%emt 0:00:28]} 55. Nc5+ {[%emt 0:00:29]} Kb4 {[%emt 0:00:05]} 56. Nb7 {[%emt 0:00:14]} Kxa4 {[%emt 0:00:12]} 57. Ke2 {[%emt 0:00:18]} Bg5 {[%emt 0:00:13]} 58. h4 {[%emt 0:00:45]} Bh6 {[%emt 0:00:08]} 59. Nc5+ {[%emt 0:01:37]} Kb4 {[%emt 0:00:51]} 60. Nd3+ {[%emt 0:00:21]} Kc3 {[%emt 0:02:26]} 61. Nc5 {[%emt 0:00:24]} Kc4 {[%emt 0:00:00]} 62. Na4 {[%emt 0:00:34]} Kb4 {[%emt 0:00:00]} 63. Nb2 {[%emt 0:00:16]} a4 {[%emt 0:00:00]} 64. Nd3+ {[%emt 0:01:00]} Kc3 {[%emt 0:00:00]} 65. Nc1 {[%emt 0:00:15]} a3 {[%emt 0:00:00]} 66. h5 {[%emt 0:00:35]} Kc2 {[%emt 0:00:00]} 67. Na2 {[%emt 0:00:34]} Kb2 {[%emt 0:00:00]} 68. Nb4 {[%emt 0:00:03]} a2 {[%emt 0:00:00]} 69. Nxa2 {[%emt 0:00:05]} Kxa2 {[%emt 0:00:00]} 70. Kd3 {[%emt 0:00:05]} Kb3 {[%emt 0:00:00]} 71. Ke2 {[%emt 0:00:08]} Kc2 {[%emt 0:00:00]} 72. Ke1 {[%emt 0:00:07]} Kd3 {[%emt 0:00:00]} 73. Kd1 {[%emt 0:00:05]} e2+ {[%emt 0:00:00]} 74. Ke1 {[%emt 0:00:09]} Bd2+ {[%emt 0:00:00]} 0-1

[Event "34th MPL National U14-ch 2022"]
[Site "Ahmedabad"]
[Date "2022.05.12"]
[Round "7.10"]
[White "Kavin Oviyan R"]
[Black "Bagwe Gaurang"]
[Result "0-1"]
[ECO "D17"]
[WhiteElo "1299"]
[BlackElo "1789"]
[Annotator "NA RC COMBH"]
[PlyCount "99"]
[EventDate "2022.05.09"]
[EventType "swiss"]
[EventCountry "IND"]
[SourceTitle "playchess.com"]
[Source "ChessBase"]
[SourceQuality "1"]
[TimeControl "5400+30"]

1. Nf3 {[%emt 0:00:30]} d5 {[%emt 0:00:30]} 2. d4 {[%emt 0:00:30]} c6 {[%emt 0:00:30]} 3. c4 {[%emt 0:00:30]} Nf6 {[%emt 0:00:30]} 4. Nc3 {[%emt 0:00:00]} dxc4 {[%emt 0:00:00]} 5. a4 {[%emt 0:00:10]} Bf5 {[%emt 0:00:00]} 6. Ne5 {[%emt 0:01:49]} e6 {[%emt 0:00:00]} 7. f3 {[%emt 0:00:36]} Bb4 {[%emt 0:00:00]} 8. e4 {[%emt 0:00:39]} Bxe4 {[%emt 0:00:00]} 9. fxe4 {[%emt 0:00:07]} Nxe4 {[%emt 0:00:00]} 10. Bd2 {[%emt 0:00:17]} Qxd4 {[%emt 0:00:00]} 11. Nxe4 {[%emt 0:00:19]} Qxe4+ {[%emt 0:00:07]} 12. Qe2 {[%emt 0:00:27]} Bxd2+ {[%emt 0:01:53]} 13. Kxd2 {[%emt 0:00:11]} Qd5+ {[%emt 0:00:15]} 14. Kc2 {[%emt 0:05:35]} Na6 {[%emt 0:01:54]} 15. Rd1 {[%emt 0:17:51]} Qa5 {[%emt 0:02:34]} 16. Kb1 {[%emt 0:04:46]} O-O {[%emt 0:05:29]} 17. Nxc4 {[%emt 0:04:17]} Qxa4 {[%emt 0:00:23]} 18. Qc2 {[%emt 0:00:21]} Qxc2+ {[%emt 0:05:36]} 19. Kxc2 {[%emt 0:00:10]} Nb4+ {[%emt 0:01:41]} 20. Kb3 {[%emt 0:00:25]} Nd5 {[%emt 0:01:07]} 21. Be2 {[%emt 0:04:32]} a5 {[%emt 0:01:37]} 22. Bf3 {[%emt 0:00:36]} a4+ {[%emt 0:01:08]} 23. Ka3 {[%emt 0:00:38]} b5 {[%emt 0:04:32]} 24. Bxd5 {[%emt 0:01:36]} cxd5 {[%emt 0:03:39]} 25. Ne3 {[%emt 0:05:30]} b4+ {[%emt 0:00:14]} 26. Ka2 {[%emt 0:02:24]} Rfc8 {[%emt 0:04:35]} 27. Rc1 {[%emt 0:01:02]} f6 {[%emt 0:02:34]} 28. Rxc8+ {[%emt 0:01:24]} Rxc8 {[%emt 0:00:07]} 29. Rd1 {[%emt 0:00:08]} Kf7 {[%emt 0:11:17]} 30. Rd4 {[%emt 0:02:57]} b3+ {[%emt 0:01:35]} 31. Kb1 {[%emt 0:02:47]} Ra8 {[%emt 0:52:13]} 32. Rb4 {[%emt 0:00:30]} Ra7 {[%emt 0:00:00]} 33. Nd1 {[%emt 0:06:39]} a3 {[%emt 0:00:00]} 34. Rxb3 {[%emt 0:04:03]} axb2 {[%emt 0:00:00]} 35. Kxb2 {[%emt 0:00:36]} d4 {[%emt 0:00:00]} 36. Kc2 {[%emt 0:01:00]} e5 {[%emt 0:00:00]} 37. Kd3 {[%emt 0:06:46]} Ke6 {[%emt 0:00:00]} 38. h3 {[%emt 0:02:17]} Kd5 {[%emt 0:00:00]} 39. Rb5+ {[%emt 0:00:14]} Kc6 {[%emt 0:00:00]} 40. Rb2 {[%emt 0:00:20]} f5 {[%emt 0:00:00]} 41. Rf2 {[%emt 0:07:17]} g6 {[%emt 0:00:00]} 42. g4 {[%emt 0:02:42]} Ra3+ {[%emt 0:00:00]} 43. Kc4 {[%emt 0:00:23]} f4 {[%emt 0:00:00]} 44. Re2 {[%emt 0:00:06]} Kd6 {[%emt 0:00:00]} 45. Nf2 {[%emt 0:00:16]} Rc3+ {[%emt 0:00:00]} 46. Kb4 {[%emt 0:00:08]} Kd5 {[%emt 0:00:00]} 47. g5 {[%emt 0:01:18]} f3 {[%emt 0:00:00]} 48. Ra2 {[%emt 0:00:06]} Re3 {[%emt 0:00:00]} 49. Ng4 {[%emt 0:08:31]} Ke4 {[%emt 0:00:00] Check Result:-5.82} 50. Kc4 {[%emt 0:09:14]} 0-1

[Event "34th MPL National U14-ch 2022"]
[Site "Ahmedabad"]
[Date "2022.05.12"]
[Round "8.1"]
[White "Kadam Om Manish"]
[Black "Mayank Chakraborty"]
[Result "0-1"]
[ECO "B33"]
[WhiteElo "2144"]
[BlackElo "2015"]
[Annotator "TA"]
[PlyCount "54"]
[EventDate "2022.05.09"]
[EventType "swiss"]
[EventCountry "IND"]
[SourceTitle "playchess.com"]
[Source "ChessBase"]
[SourceQuality "1"]
[TimeControl "5400+30"]

{[%evp 19,54,-21,0,0,30,0,0,0,0,6,24,2,23,0,0,0,0,-2,-7,-92,-79,-83,-66,-68,-75,-322,-322,-352,-357,-645,-558,-946,-972,-975,-970,-1254,-1188]} 1. e4 {[%emt 0:00:30]} c5 {[%emt 0:00:30]} 2. Nf3 {[%emt 0:00:30][%cal Bg1f3,Bf3d4,Bd4b5,Bb5a3][%mdl 32]} Nc6 {[%emt 0:00:30]} 3. d4 {[%emt 0:00:30]} cxd4 {[%emt 0:00:30]} 4. Nxd4 {[%emt 0:00:30]} Nf6 {[%emt 0:00:30]} 5. Nc3 {[%emt 0:00:30]} e5 {[%emt 0:00:30]} 6. Ndb5 {[%emt 0:00:30]} d6 {[%emt 0:00:30]} 7. a4 {[%emt 0:00:30]} a6 {[%emt 0:00:30]} 8. Na3 {[%emt 0:00:30]} Bg4 {[%emt 0:00:30]} 9. f3 {[%emt 0:00:30]} Be6 {[%emt 0:00:30]} 10. Bc4 {[%emt 0:00:30]} Rc8 {[%emt 0:00:30]} 11. Nd5 {[%emt 0:00:30] B33: Sicilian: Pelikan and Sveshnikov Variations.} Nb4 {[%emt 0:00:30]} 12. c3 {[%emt 0:00:30] [#]} Nbxd5 $146 {[%emt 0:00:30]} ({Predecessor:} 12... Nxe4 13. fxe4 Qh4+ 14. Kf1 Qxe4 15. Nxb4 Rxc4 16. Qf3 a5 17. Qxe4 Rxe4 18. Nbc2 Rxa4 {0-1 (43) Kenworthy,G (2299)-Cox,T (2062) Sunningdale 2007}) 13. exd5 {[%emt 0:00:30] The position is equal.} Bf5 {[%emt 0:00:30]} 14. Be3 {[%emt 0:00:30]} Nd7 {[%emt 0:00:30][%cal Oc8c4]} 15. O-O {[%emt 0:00:30]} Be7 {[%emt 0:00:30]} 16. Qd2 {[%emt 0:00:30]} O-O {[%emt 0:00:30]} 17. b4 {[%emt 0:00:30]} Bg6 {[%emt 0:00:30]} 18. Bb3 {[%emt 0:00:30]} f5 {[%emt 0:00:30][%cal Bf7f5,Bf5f4,Bf4f3][%mdl 32]} 19. Kh1 {[%emt 0:00:30]} (19. Nc4 $11) 19... f4 $17 {[%emt 0:00:30]} 20. Bg1 {[%emt 0:00:30]} e4 {[%emt 0:00:30]} 21. fxe4 {[%emt 0:00:30]} Bg5 {[%emt 0:00:30] White must now prevent ...f3.} 22. Bd4 $2 {[%emt 0:00:30] [#] This move loses the game for White.} (22. Qe1 $17) 22... f3 $1 $19 {[%emt 0:00:30]} 23. Qc2 {[%emt 0:00:30] [#]} Bf6 $1 {[%emt 0:00:30]} 24. Qd3 {[%emt 0:00:30]} (24. Bxf6 fxg2+ 25. Qxg2 Nxf6 26. Bc2 Rxc3 27. Kg1) 24... Ne5 {[%emt 0:00:30] Black is clearly winning.} 25. Qe3 {[%emt 0:00:30]} Bg5 {[%emt 0:00:30][%mdl 64] Deflection} 26. Qf2 {[%emt 0:00:30]} Bxe4 {[%emt 0:00:30]} 27. g3 {[%emt 0:00:30]} Nd3 {[%emt 0:00:30] Weighted Error Value: White=0.94/Black=0.09 (flawless)} 0-1

[Event "34th MPL National U14-ch 2022"]
[Site "Ahmedabad"]
[Date "2022.05.12"]
[Round "8.2"]
[White "Vaz, Ethan"]
[Black "John Veny Akkarakaran"]
[Result "0-1"]
[ECO "C06"]
[WhiteElo "1792"]
[BlackElo "1855"]
[Annotator "NA RC COMBH"]
[PlyCount "150"]
[EventDate "2022.05.09"]
[EventType "swiss"]
[EventCountry "IND"]
[SourceTitle "playchess.com"]
[Source "ChessBase"]
[SourceQuality "1"]
[TimeControl "5400+30"]

1. e4 {[%emt 0:00:04]} e6 {[%emt 0:00:37]} 2. d4 {[%emt 0:00:20]} d5 {[%emt 0:00:00]} 3. Nd2 {[%emt 0:00:23]} Nf6 {[%emt 0:00:00]} 4. e5 {[%emt 0:00:49]} Nfd7 {[%emt 0:00:01]} 5. Bd3 c5 {[%emt 0:00:11]} 6. c3 {[%emt 0:00:12]} Nc6 {[%emt 0:00:23]} 7. Ne2 {[%emt 0:00:20]} cxd4 {[%emt 0:00:03]} 8. cxd4 {[%emt 0:00:07]} f6 {[%emt 0:00:02]} 9. exf6 {[%emt 0:04:36]} Nxf6 {[%emt 0:00:03]} 10. Nf3 {[%emt 0:01:19]} Bd6 {[%emt 0:00:07]} 11. O-O {[%emt 0:03:56]} Qc7 {[%emt 0:00:05]} 12. Nc3 {[%emt 0:02:28]} a6 {[%emt 0:00:07]} 13. Re1 {[%emt 0:14:08]} O-O {[%emt 0:01:53]} 14. h3 {[%emt 0:03:20]} Bd7 {[%emt 0:02:36]} 15. Be3 {[%emt 0:09:49]} Rae8 {[%emt 0:02:07]} 16. Rc1 {[%emt 0:01:19]} Qb8 {[%emt 0:05:12]} 17. a3 {[%emt 0:13:53]} Re7 {[%emt 0:09:41]} 18. b4 {[%emt 0:11:18]} Be8 {[%emt 0:13:37]} 19. Na4 {[%emt 0:13:21]} (19. b5 $5 {[%cal Rb5c6]} Na5 20. Qa4 $14 (20. bxa6 bxa6 21. Bxa6 Bxa3 $16)) 19... Bh5 {[%emt 0:14:00]} 20. Be2 {[%emt 0:07:05]} Ne4 {[%emt 0:17:54]} 21. Nc3 {[%emt 0:03:33]} Nxc3 {[%emt 0:03:38]} 22. Rxc3 {[%emt 0:00:01]} Bf4 {[%emt 0:00:18]} 23. g4 {[%emt 0:03:09]} Bg6 {[%emt 0:02:38]} 24. Bd3 {[%emt 0:02:51]} Bxe3 {[%emt 0:04:18]} 25. Rxe3 {[%emt 0:00:07]} Bxd3 {[%emt 0:03:38]} 26. Qxd3 {[%emt 0:00:43]} Qf4 {[%emt 0:00:29]} 27. Rc2 {[%emt 0:00:19]} h5 {[%emt 0:04:11]} 28. g5 {[%emt 0:01:13]} e5 {[%emt 0:02:03]} 29. Qb3 {[%emt 0:02:10]} e4 $2 {[%emt 0:05:14]} (29... exd4 $19 30. Rxe7 (30. Qxd5+ $2 Qf7 $19) 30... Nxe7) 30. Qxd5+ $11 {[%emt 0:00:44]} Kh7 {[%emt 0:00:37]} 31. g6+ {[%emt 0:01:05]} Kxg6 {[%emt 0:00:57]} 32. Rc5 {[%emt 0:00:23]} Kh7 {[%emt 0:03:24]} 33. Qxh5+ {[%emt 0:01:14]} Kg8 {[%emt 0:00:41]} 34. Qd5+ {[%emt 0:00:37]} Ref7 {[%emt 0:00:25]} 35. Qxe4 {[%emt 0:00:26]} Qxe4 {[%emt 0:00:10]} 36. Rxe4 {[%emt 0:00:01]} Rxf3 {[%emt 0:00:02]} 37. d5 {[%emt 0:00:07]} Nd8 {[%emt 0:00:17]} 38. Rd4 {[%emt 0:01:27]} Rxf2 {[%emt 0:00:56]} 39. Rc8 {[%emt 0:00:28]} R2f7 {[%emt 0:00:56]} 40. Kg2 {[%emt 0:00:30]} Rd7 {[%emt 0:00:16]} 41. Kg3 {[%emt 0:00:15]} Rf5 {[%emt 0:00:39]} 42. d6 {[%emt 0:00:40]} Rf6 {[%emt 0:00:34]} 43. Rc7 {[%emt 0:00:23]} Rdxd6 {[%emt 0:00:09]} 44. Rg4 {[%emt 0:00:44]} Rd3+ {[%emt 0:00:44]} 45. Kg2 {[%emt 0:00:15]} Rf7 {[%emt 0:00:54]} 46. Rc8 {[%emt 0:00:32]} Kh7 {[%emt 0:01:38]} 47. Rh4+ {[%emt 0:00:14]} Kg6 {[%emt 0:00:11]} 48. Rg4+ {[%emt 0:00:05]} Kf6 {[%emt 0:00:25]} 49. Rf4+ {[%emt 0:00:08]} Ke7 {[%emt 0:00:20]} 50. Rc7+ {[%emt 0:00:06]} Rd7 {[%emt 0:00:04]} 51. Re4+ {[%emt 0:00:08]} Ne6 {[%emt 0:00:12]} 52. Rc2 {[%emt 0:00:19]} Rf4 {[%emt 0:00:14]} 53. Re3 {[%emt 0:00:03]} Rfd4 {[%emt 0:00:21]} 54. Rce2 {[%emt 0:00:04]} R7d6 {[%emt 0:00:04]} 55. Kf2 {[%emt 0:00:22]} Rd3 {[%emt 0:00:18]} 56. Re4 {[%emt 0:00:41]} Rxh3 {[%emt 0:00:17]} 57. a4 {[%emt 0:00:04]} g5 {[%emt 0:00:55]} 58. Kg2 {[%emt 0:00:07]} Rh4 {[%emt 0:00:12]} 59. Rxh4 {[%emt 0:00:21]} gxh4 {[%emt 0:00:01]} 60. Re4 {[%emt 0:00:08]} Rd4 {[%emt 0:00:04]} 61. Re5 {[%emt 0:01:04]} Rxb4 {[%emt 0:00:06]} 62. a5 {[%emt 0:00:06]} Kd6 {[%emt 0:00:11]} 63. Re1 {[%emt 0:00:07]} Nc5 {[%emt 0:00:10]} 64. Kh3 {[%emt 0:00:06]} Kc6 {[%emt 0:00:04]} 65. Re5 {[%emt 0:00:07]} Kb5 {[%emt 0:00:07]} 66. Rh5 {[%emt 0:00:04]} Rc4 {[%emt 0:00:04]} 67. Kg2 {[%emt 0:00:07]} Kxa5 {[%emt 0:00:05]} 68. Kf3 {[%emt 0:00:03]} b5 {[%emt 0:00:14]} 69. Ke3 {[%emt 0:00:03]} Kb4 {[%emt 0:00:05]} 70. Kd2 {[%emt 0:00:08]} a5 {[%emt 0:00:02]} 71. Rf5 {[%emt 0:00:06]} a4 {[%emt 0:00:03]} 72. Rf1 {[%emt 0:00:04]} a3 {[%emt 0:13:16]} 73. Rb1+ {[%emt 0:00:04]} Nb3+ {[%emt 0:00:00]} 74. Kd3 {[%emt 0:00:25]} a2 {[%emt 0:00:00]} 75. Rh1 {[%emt 0:00:33]} a1=Q {[%emt 0:00:00]} 0-1

[Event "34th MPL National U14-ch 2022"]
[Site "Ahmedabad"]
[Date "2022.05.12"]
[Round "8.3"]
[White "Koustuv Dash"]
[Black "Bharadia Yash"]
[Result "1-0"]
[ECO "E11"]
[WhiteElo "1910"]
[BlackElo "1924"]
[Annotator "TA"]
[PlyCount "109"]
[EventDate "2022.05.09"]
[EventType "swiss"]
[EventCountry "IND"]
[SourceTitle "playchess.com"]
[Source "ChessBase"]
[SourceQuality "1"]
[TimeControl "5400+30"]

{[%evp 18,109,24,24,43,43,38,37,42,41,38,37,58,56,87,44,40,20,163,166,164,160,168,153,169,160,180,160,170,162,188,154,316,307,438,289,280,285,261,250,558,550,771,33,59,41,31,7,4,2,5,8,397,385,385,260,266,276,298,296,295,275,261,264,315,311,29972,29973,29963,5406,29980,1752,29981,29981,29982,29983,29987,29988,29989,29988,29988,29989,29989,29983,29983,29984,29984,29985,29985,29986,29999,29981,29975,0]} 1. d4 {[%emt 0:00:22]} Nf6 {[%emt 0:04:35]} 2. c4 {[%emt 0:00:07]} e6 {[%emt 0:00:05]} 3. Nf3 {[%emt 0:00:01]} b6 {[%emt 0:00:07]} 4. g3 {[%emt 0:00:07]} Bb7 {[%emt 0:00:12]} 5. Bg2 {[%emt 0:00:05]} Bb4+ {[%emt 0:00:07]} 6. Bd2 {[%emt 0:00:00]} Bxd2+ {[%emt 0:00:11]} 7. Qxd2 {[%emt 0:00:03]} O-O {[%emt 0:05:15]} 8. Nc3 {[%emt 0:00:27]} d5 {[%emt 0:02:11]} 9. Ne5 {[%emt 0:00:46]} Nbd7 {[%emt 0:00:09]} 10. O-O {[%emt 0:03:08]} a6 {[%emt 0:17:33] E11: Bogo-Indian.} 11. Rfd1 {[%emt 0:01:51] [#]} Qe7 $146 {[%emt 0:00:47]} ({Predecessor:} 11... Rc8 12. Rac1 Qe7 13. cxd5 exd5 14. Bh3 Rfd8 15. Qg5 Qd6 16. Rc2 h6 17. Qf4 Qe7 18. Nxd7 Nxd7 {1-0 (33) Villamayor,B (2560)-Roca,P (2394) Vung Tau 2001}) 12. Rac1 {[%emt 0:07:03]} Rfd8 {[%emt 0:00:31] White is slightly better.} 13. Qg5 {[%emt 0:03:42]} h6 {[%emt 0:09:16]} 14. Qh4 {[%emt 0:01:01]} Qf8 {[%emt 0:08:09]} 15. Qf4 {[%emt 0:02:51]} Rac8 {[%emt 0:07:26]} 16. Nxd7 {[%emt 0:12:26] White is much more active.} Rxd7 {[%emt 0:00:38]} 17. cxd5 {[%emt 0:00:02]} exd5 {[%emt 0:01:18]} (17... Nxd5 $11 {and Black stays safe.} 18. Nxd5 Bxd5) 18. Bh3 $18 {[%emt 0:00:18]} Rd6 {[%emt 0:05:33]} 19. Bxc8 {[%emt 0:00:37]} Qxc8 {[%emt 0:00:53]} 20. Nb1 {[%emt 0:02:49][%cal Bc3b1,Bb1d2,Bd2f3,Bf3e5][%mdl 32] Black must now prevent Qxd6.} Qd7 {[%emt 0:02:43]} 21. Nd2 {[%emt 0:01:45]} c6 {[%emt 0:01:49]} 22. Nf3 {[%emt 0:00:47]} Ne4 {[%emt 0:00:05]} 23. Ne5 {[%emt 0:00:24]} Qe8 {[%emt 0:00:38]} 24. Nd3 {[%emt 0:11:42]} Re6 $2 {[%emt 0:32:19]} (24... g5 $16 25. Qf3 Re6) 25. Qc7 $1 {[%emt 0:04:01][%csl LRb6,LRb7]} Bc8 {[%emt 0:00:00]} (25... Qe7 $142 26. Qxb6 c5) 26. Ne5 {[%emt 0:03:38]} c5 {[%emt 0:00:00] [#]} 27. dxc5 {[%emt 0:03:20]} Re7 {[%emt 0:00:00]} 28. Qb8 {[%emt 0:02:32]} (28. Qxb6 Rxe5 29. f4 Rh5 $15) 28... b5 {[%emt 0:00:00]} (28... Rxe5 29. cxb6 Bd7 30. Qxe8+ Rxe8 31. Rxd5 Nf6) 29. Rxd5 {[%emt 0:01:12]} Nf6 {[%emt 0:00:00] [#]} 30. Rcd1 {[%emt 0:05:47]} (30. Rd8 $3 $18 {[%mdl 512]} Qxd8 31. Nc6) 30... Nxd5 $14 {[%emt 0:00:00]} 31. Rxd5 {[%emt 0:00:02] c6 is the strong threat.} f6 {[%emt 0:00:00] [#]} 32. Qb6 $1 {[%emt 0:09:11]} Kh7 $1 $132 {[%emt 0:00:00][%mdl 2048] Black has counterplay} (32... fxe5 $2 33. Rd8 $18) 33. Rd8 {[%emt 0:07:15]} Qh5 {[%emt 0:00:00]} 34. Rxc8 {[%emt 0:00:25]} (34. Nc6 Rxe2 $1 35. Rh8+ Kxh8 36. Qd8+ Kh7 37. Qd1 Qf3) 34... Qxe2 {[%emt 0:00:00][%mdl 8192] [#]} (34... Rxe5 $11 {and Black is okay.} 35. Qb7 (35. Qxa6 $2 Rxe2 36. Qxb5 Qf3 $19) 35... Rxe2) 35. Rh8+ $3 $18 {[%emt 0:02:55][%mdl 512]} Kxh8 {[%emt 0:00:00][%mdl 4096] Endgame KQR-KQN} 36. Ng6+ {[%emt 0:00:26]} Kh7 {[%emt 0:00:24]} 37. Nxe7 {[%emt 0:00:02]} Qe1+ {[%emt 0:00:02]} 38. Kg2 {[%emt 0:00:01]} Qe4+ {[%emt 0:00:09] [#]} 39. Kh3 $1 {[%emt 0:00:03]} Qxe7 {[%emt 0:00:36] KQ-KQ} 40. Qc6 {[%emt 0:02:06] Inhibits Qd7+.} Qe2 {[%emt 0:00:37]} 41. Kg2 {[%emt 0:01:43] Hoping for Qd5.} ({Worse is} 41. Qxa6 Qf1+ 42. Kg4 h5+ 43. Kf3 Qh1+ 44. Ke2 Qe4+ 45. Kf1 Qh1+ 46. Ke2 Qe4+ 47. Kf1 Qh1+ 48. Ke2 $11) 41... Qxb2 $2 {[%emt 0:02:44]} (41... Qc4 $18 42. a3 Qd4) 42. Qe4+ {[%emt 0:02:27]} Kh8 {[%emt 0:00:12]} 43. c6 {[%emt 0:00:04]} Qc3 {[%emt 0:00:30]} 44. Qe8+ {[%emt 0:00:07]} Kh7 {[%emt 0:00:02]} 45. Qd7 {[%emt 0:00:00] White mates.} Qc2 {[%emt 0:02:28]} 46. c7 {[%emt 0:00:06]} Qe4+ {[%emt 0:00:24]} 47. Kh3 {[%emt 0:00:01]} f5 {[%emt 0:00:25]} 48. c8=Q {[%emt 0:00:35]} Qg4+ {[%emt 0:00:06]} 49. Kg2 {[%emt 0:00:01]} Qe4+ {[%emt 0:00:06]} 50. Kf1 {[%emt 0:00:10]} Qb1+ {[%emt 0:00:09] [#]} 51. Ke2 $1 {[%emt 0:00:01]} Qe4+ {[%emt 0:00:15]} 52. Kd2 {[%emt 0:00:11]} Qb4+ {[%emt 0:00:12]} 53. Qc3 {[%emt 0:00:04][%csl Gc3][%cal Rd7g7]} Qb1 {[%emt 0:00:15]} 54. Qc2 {[%emt 0:00:21]} Qb4+ {[%emt 0:00:12]} 55. Qc3 $2 {[%emt 0:16:49][%mdl 32768] Weighted Error Value: White=0.22 (precise) /Black=0.66. Loss on time!?} (55. Ke3 {mates} Qg4 56. Qdxf5+ Qxf5 57. Qxf5+ Kg8 58. f4 a5 59. Qd7 b4 60. f5) 1-0